fUSD/lending_fUSD_20251031
["ID","MTS","AMOUNT","RATE_DAILY","PERIOD"]
[392768721,1761933327320,503.5,0.00013057,2]
[392768722,1761933327420,503.5,0.00013453,2]
[392768724,1761933351683,-503.5,0.00013848,2]
[392768726,1761933419679,-1852.42,0.00014043,2]
[392768727,1761933419704,-503.5,0.00014244,2]
[392768728,1761933419727,-3445.82,0.00014287,2]
[392768729,1761933419752,-503.5,0.0001464,2]
[392768730,1761933419775,-738.85687081,0.00014684,2]
[392768731,1761933419800,-268.48148214,0.000148,2]
[392768732,1761933419825,-268.48148205,0.00014811,2]
[392768733,1761933419848,-268.48148205,0.00014822,2]
[392768734,1761933419873,-268.48148205,0.00014833,2]
[392768735,1761933419897,-268.48148205,0.00014844,2]
[392768736,1761933419920,-81613.49571885,0.0001485,2]
[392768737,1761933427888,1851.614486,7.945e-05,2]
[392768754,1761933578607,-293.90561025,0.00013699,2]
[392768755,1761933582152,-205.01292417,0.00013699,2]
[392768756,1761933583978,-3.17146558,0.00013699,2]
[392768759,1761933595934,864.73374367,0.00030136,120]
[392768772,1761933684146,674.2188524,0.000301,120]
[392768781,1761933912621,290.30043067,0.00013488,2]
[392768782,1761933912742,150.0,0.00013488,2]
[392768783,1761933912859,156.80799875,0.00013488,2]
[392768784,1761933919675,160.27956323,0.00013488,2]
[392768785,1761933919773,150.0,0.00013488,2]
[392768786,1761933919929,150.0,0.00013488,2]
[392768787,1761933920610,150.0,0.00013488,2]
[392768788,1761933926908,157.02041754,0.00013488,2]
[392768789,1761933932291,291.86711232,0.00013488,2]
[392768790,1761933932372,286.95441992,0.00013488,2]
[392768792,1761933936064,156.69002569,0.00013488,2]
[392768819,1761934231616,-500.0,0.000139,2]
[392768820,1761934231626,-300.0,0.00013902,2]
[392768821,1761934231635,-200.0,0.00013904,2]
[392768822,1761934231644,-300.0,0.0001399,2]
[392768823,1761934231654,-676.48,0.00013991,2]
[392768824,1761934231663,-59.43509781,0.00014027,2]
[392768825,1761934231828,-190.56490219,0.00014027,2]
[392768826,1761934231837,-386.41499794,0.00014129,2]
[392768827,1761934231849,-786.02172182,0.00014155,2]
[392768828,1761934231860,-985.41827818,0.00014155,2]
[392768829,1761934231870,-509.0,0.00014575,2]
[392768830,1761934231879,-1200.0,0.00014749,2]
[392768832,1761934231889,-2500.0,0.00014749,2]
[392768834,1761934231898,-2500.0,0.0001475,2]
[392768836,1761934231907,-547.0,0.000148,2]
[392768838,1761934231916,-300.0,0.0001484,2]
[392768840,1761934231924,-300.0,0.0001484,2]
[392768842,1761934231934,-151.0,0.00014841,2]
[392768844,1761934231943,-151.0,0.00014841,2]
[392768846,1761934231952,-151.0,0.00014841,2]
[392768848,1761934231961,-151.0,0.00014841,2]
[392768850,1761934231970,-151.0,0.00014841,2]
[392768851,1761934231979,-151.0,0.00014841,2]
[392768854,1761934231989,-500.0,0.00014841,2]
[392768855,1761934231998,-151.0,0.00014841,2]
[392768858,1761934232008,-151.0,0.00014841,2]
[392768859,1761934232017,-151.0,0.00014841,2]
[392768861,1761934232027,-151.0,0.00014841,2]
[392768864,1761934232037,-151.0,0.00014841,2]
[392768866,1761934232047,-574.12855637,0.00014841,2]
[392768868,1761934232056,-277.35679052,0.00014841,2]
[392768869,1761934232065,-150.0,0.00014848,2]
[392768872,1761934232075,-52356.69969719,0.0001485,2]
[392768875,1761934232084,-158.08720057,0.0001485,2]
[392768876,1761934232096,-301.51888603,0.0001485,2]
[392768878,1761934232107,-4581.927,0.0001485,2]
[392768880,1761934232117,-720.89936,0.0001485,2]
[392768882,1761934232128,-165.84,0.00014858,2]
[392768884,1761934232137,-500.0,0.00014873,2]
[392768886,1761934232147,-514.5669616,0.00014873,2]
[392768888,1761934232155,-500.0,0.00014873,2]
[392768890,1761934232165,-500.0,0.00014873,2]
[392768892,1761934232174,-500.0,0.00014873,2]
[392768893,1761934232183,-500.0,0.00014873,2]
[392768894,1761934232192,-500.0,0.00014873,2]
[392768895,1761934232202,-500.0,0.00014873,2]
[392768896,1761934232210,-500.0,0.00014873,2]
[392768897,1761934232219,-500.0,0.00014873,2]
[392768898,1761934232228,-167.80092629,0.00014897,2]
[392768899,1761934232236,-152.41568192,0.00014897,2]
[392768900,1761934232245,-167.80092628,0.00014897,2]
[392768901,1761934232254,-167.80092628,0.00014898,2]
[392768902,1761934232263,-167.80092628,0.00014898,2]
[392768903,1761934232272,-167.80092628,0.00014899,2]
[392768905,1761934232281,-506.69350667,0.00014899,2]
[392768907,1761934232290,-500.0,0.00014899,2]
[392768909,1761934232299,-500.0,0.00014899,2]
[392768911,1761934232308,-500.0,0.00014899,2]
[392768912,1761934232317,-500.0,0.00014899,2]
[392768914,1761934232327,-500.0,0.00014899,2]
[392768915,1761934232336,-500.0,0.00014899,2]
[392768916,1761934232347,-175.83129433,0.00014899,2]
[392768918,1761934232356,-500.0,0.00014899,2]
[392768920,1761934232365,-500.0,0.00014899,2]
[392768922,1761934232374,-500.0,0.00014899,2]
[392768924,1761934232383,-500.0,0.00014899,2]
[392768926,1761934232392,-500.0,0.00014899,2]
[392768928,1761934232401,-500.0,0.00014899,2]
[392768930,1761934232409,-500.0,0.00014899,2]
[392768932,1761934232418,-500.0,0.00014899,2]
[392768933,1761934232427,-500.0,0.00014899,2]
[392768935,1761934232436,-500.0,0.00014899,2]
[392768937,1761934232445,-500.0,0.00014899,2]
[392768939,1761934232454,-500.0,0.00014899,2]
[392768941,1761934232463,-500.0,0.00014899,2]
[392768944,1761934232472,-500.0,0.00014899,2]
[392768945,1761934232481,-500.0,0.00014899,2]
[392768947,1761934232489,-500.0,0.00014899,2]
[392768949,1761934232498,-500.0,0.00014899,2]
[392768951,1761934232507,-500.0,0.00014899,2]
[392768953,1761934232516,-506.69350661,0.00014899,2]
[392768955,1761934232524,-167.80092628,0.00014899,2]
[392768957,1761934232533,-506.69350661,0.00014899,2]
[392768959,1761934232543,-506.69350661,0.00014899,2]
[392768961,1761934232552,-506.69350661,0.00014899,2]
[392768963,1761934232561,-506.69350661,0.000149,2]
[392768965,1761934232569,-167.80092628,0.000149,2]
[392768967,1761934232578,-506.69350661,0.000149,2]
[392768969,1761934232586,-506.69350661,0.000149,2]
[392768971,1761934232597,-506.69350661,0.000149,2]
[392768973,1761934232605,-18469.7585,0.000149,2]
[392768975,1761934232614,-7338.5488,0.000149,2]
[392768977,1761934232623,-12058.9742,0.000149,2]
[392768979,1761934232632,-1000.0,0.000149,2]
[392768981,1761934232641,-5000.0,0.000149,2]
[392768983,1761934232650,-167.80092628,0.000149,2]
[392768985,1761934232659,-506.69350661,0.000149,2]
[392768987,1761934232668,-1068.69,0.0001497,2]
[392768989,1761934232677,-500.0,0.00014973,2]
[392768991,1761934232686,-506.51184219,0.00014973,2]
[392768993,1761934232695,-160.50909131,0.00014973,2]
[392768995,1761934232704,-500.0,0.00014973,2]
[392768997,1761934232712,-416.4542336,0.00014973,2]
[392768998,1761934232721,-500.0,0.00014973,2]
[392769000,1761934232730,-500.61761903,0.00014973,2]
[392769002,1761934232739,-500.95543813,0.00014973,2]
[392769004,1761934232748,-500.0,0.00014973,2]
[392769006,1761934232757,-500.75904731,0.00014973,2]
[392769008,1761934232766,-500.0,0.00014973,2]
[392769010,1761934232775,-592.65085401,0.00014973,2]
[392769012,1761934232783,-509.23682617,0.00014973,2]
[392769014,1761934232793,-190.5864462,0.00014973,2]
[392769016,1761934232805,-309.4135538,0.00014973,2]
[392769019,1761934232814,-155.09476708,0.00014973,2]
[392769020,1761934232823,-513.80922921,0.00014973,2]
[392769023,1761934232833,-514.21510557,0.00014973,2]
[392769024,1761934232843,-500.0,0.00014973,2]
[392769026,1761934232852,-500.0,0.00014973,2]
[392769028,1761934232862,-596.03695751,0.00014973,2]
[392769030,1761934232871,-500.0,0.00014973,2]
[392769032,1761934232880,-500.0,0.00014973,2]
[392769034,1761934232890,-164.34626945,0.00014973,2]
[392769036,1761934232899,-500.0,0.00014973,2]
[392769038,1761934232907,-500.0,0.00014973,2]
[392769040,1761934232916,-1043.01,0.00014976,2]
[392769042,1761934232925,-720.89937,0.0001498,2]
[392769044,1761934232934,-193.01178975,0.00014986,2]
[392769046,1761934232944,-274.54088779,0.00014986,2]
[392769048,1761934232954,-196.30451484,0.00014986,2]
[392769050,1761934232963,-467.92071278,0.0001499,2]
[392769052,1761934232972,-467.92071278,0.0001499,2]
[392769054,1761934232982,-467.92071278,0.0001499,2]
[392769057,1761934232991,-500.0,0.00014996,2]
[392769058,1761934233000,-500.0,0.00014996,2]
[392769059,1761934233009,-500.0,0.00014996,2]
[392769060,1761934233018,-500.0,0.00014996,2]
[392769061,1761934233027,-500.0,0.00014996,2]
[392769062,1761934233036,-500.0,0.00014996,2]
[392769063,1761934233046,-500.0,0.00014996,2]
[392769064,1761934233055,-533.82703947,0.00014996,2]
[392769065,1761934233065,-602.16,0.00014996,2]
[392769066,1761934233074,-500.0,0.00014996,2]
[392769067,1761934233084,-500.0,0.00014996,2]
[392769068,1761934233093,-500.0,0.00014996,2]
[392769069,1761934233103,-500.0,0.00014996,2]
[392769070,1761934233113,-500.0,0.00014996,2]
[392769071,1761934233126,-17235.67771811,0.00014997,2]
[392769076,1761934237633,-778.58817429,0.00014997,2]
[392769077,1761934237739,-152715.5169318,0.00014997,2]
[392769078,1761934237748,-151.0,0.00014997,2]
[392769079,1761934237757,-158.08720057,0.00014997,2]
[392769080,1761934237766,-238.7919887,0.00014999,2]
[392769081,1761934237776,-500.0,0.00014999,2]
[392769082,1761934237786,-500.0,0.00014999,2]
[392769084,1761934237795,-462.47119326,0.00014999,2]
[392769086,1761934237804,-500.0,0.00014999,2]
[392769087,1761934237813,-500.0,0.00014999,2]
[392769088,1761934237822,-500.0,0.00014999,2]
[392769089,1761934237831,-500.0,0.00014999,2]
[392769090,1761934237841,-500.0,0.00014999,2]
[392769091,1761934237850,-500.0,0.00014999,2]
[392769092,1761934237860,-500.0,0.00014999,2]
[392769093,1761934237869,-500.0,0.00014999,2]
[392769094,1761934237878,-328.84,0.00014999,2]
[392769095,1761934237887,-1062.10424787,0.00014999,2]
[392769096,1761934237901,-500.0,0.00014999,2]
[392769097,1761934237910,-500.0,0.00014999,2]
[392769098,1761934237919,-500.0,0.00014999,2]
[392769099,1761934237928,-500.0,0.00014999,2]
[392769100,1761934237938,-500.0,0.00014999,2]
[392769101,1761934237947,-500.0,0.00014999,2]
[392769102,1761934237957,-500.0,0.00014999,2]
[392769103,1761934237966,-500.0,0.00014999,2]
[392769104,1761934237976,-500.0,0.00014999,2]
[392769105,1761934237985,-500.0,0.00014999,2]
[392769106,1761934237994,-500.0,0.00014999,2]
[392769107,1761934238003,-500.0,0.00014999,2]
[392769108,1761934238011,-469.92059436,0.00014999,2]
[392769109,1761934238024,-500.0,0.00014999,2]
[392769110,1761934238033,-500.0,0.00014999,2]
[392769111,1761934238042,-500.0,0.00014999,2]
[392769112,1761934238051,-500.0,0.00014999,2]
[392769113,1761934238060,-500.0,0.00014999,2]
[392769114,1761934238070,-230.45,0.00014999,2]
[392769115,1761934238079,-500.0,0.00014999,2]
[392769116,1761934238088,-500.0,0.00014999,2]
[392769117,1761934238097,-500.0,0.00014999,2]
[392769118,1761934238108,-500.0,0.00014999,2]
[392769119,1761934238120,-571.1,0.00014999,2]
[392769120,1761934238130,-500.0,0.00014999,2]
[392769121,1761934238140,-500.0,0.00014999,2]
[392769122,1761934238150,-500.0,0.00014999,2]
[392769123,1761934238159,-500.0,0.00014999,2]
[392769124,1761934238168,-500.0,0.00014999,2]
[392769125,1761934238178,-500.0,0.00014999,2]
[392769126,1761934238187,-555.64534085,0.00014999,2]
[392769127,1761934238197,-500.0,0.00014999,2]
[392769128,1761934238206,-500.0,0.00014999,2]
[392769129,1761934238216,-500.0,0.00014999,2]
[392769130,1761934238225,-508.68908794,0.00014999,2]
[392769131,1761934238235,-500.0,0.00014999,2]
[392769132,1761934238244,-500.0,0.00014999,2]
[392769133,1761934238254,-500.0,0.00014999,2]
[392769134,1761934238263,-500.0,0.00014999,2]
[392769135,1761934238273,-155.0,0.00014999,2]
[392769136,1761934238282,-500.0,0.00014999,2]
[392769137,1761934238292,-500.0,0.00014999,2]
[392769138,1761934238301,-500.0,0.00014999,2]
[392769139,1761934238310,-500.0,0.00014999,2]
[392769140,1761934238319,-500.0,0.00014999,2]
[392769141,1761934238328,-500.0,0.00014999,2]
[392769142,1761934238337,-500.0,0.00014999,2]
[392769143,1761934238346,-500.0,0.00014999,2]
[392769144,1761934238356,-500.0,0.00014999,2]
[392769145,1761934238366,-500.0,0.00014999,2]
[392769146,1761934238375,-500.0,0.00014999,2]
[392769147,1761934238384,-513.3628881,0.00014999,2]
[392769148,1761934238393,-602.16,0.00014999,2]
[392769149,1761934238402,-602.16,0.00014999,2]
[392769150,1761934238412,-602.16,0.00014999,2]
[392769151,1761934238421,-602.16,0.00014999,2]
[392769152,1761934238431,-602.16,0.00014999,2]
[392769153,1761934238440,-602.16,0.00014999,2]
[392769154,1761934238449,-602.16,0.00014999,2]
[392769155,1761934238458,-602.16,0.00014999,2]
[392769156,1761934238468,-602.16,0.00014999,2]
[392769157,1761934238478,-602.16,0.00014999,2]
[392769158,1761934238487,-602.16,0.00014999,2]
[392769159,1761934238496,-602.16,0.00014999,2]
[392769160,1761934238505,-602.16,0.00014999,2]
[392769161,1761934238514,-602.16,0.00014999,2]
[392769162,1761934238523,-602.16,0.00014999,2]
[392769163,1761934238532,-602.16,0.00014999,2]
[392769164,1761934238542,-602.16,0.00014999,2]
[392769165,1761934238551,-602.16,0.00014999,2]
[392769166,1761934238560,-602.16,0.00014999,2]
[392769167,1761934238569,-602.16,0.00014999,2]
[392769168,1761934238579,-602.16,0.00014999,2]
[392769169,1761934238588,-602.16,0.00014999,2]
[392769170,1761934238597,-602.2,0.00014999,2]
[392769171,1761934238607,-500.0,0.00014999,2]
[392769172,1761934238616,-500.0,0.00014999,2]
[392769173,1761934238625,-500.0,0.00014999,2]
[392769174,1761934238634,-538.35508747,0.00014999,2]
[392769175,1761934238643,-638.36998471,0.00014999,2]
[392769176,1761934238653,-500.0,0.00014999,2]
[392769177,1761934238662,-500.0,0.00014999,2]
[392769178,1761934238671,-500.0,0.00014999,2]
[392769179,1761934238680,-500.0,0.00014999,2]
[392769180,1761934238689,-500.0,0.00014999,2]
[392769181,1761934238699,-500.0,0.00014999,2]
[392769182,1761934238708,-500.0,0.00014999,2]
[392769183,1761934238718,-500.0,0.00014999,2]
[392769184,1761934238727,-500.0,0.00014999,2]
[392769185,1761934238736,-500.0,0.00014999,2]
[392769186,1761934238745,-500.0,0.00014999,2]
[392769187,1761934238754,-500.0,0.00014999,2]
[392769188,1761934238763,-500.0,0.00014999,2]
[392769189,1761934238773,-500.0,0.00014999,2]
[392769190,1761934238782,-500.0,0.00014999,2]
[392769191,1761934238791,-500.0,0.00014999,2]
[392769192,1761934238801,-500.0,0.00014999,2]
[392769193,1761934238810,-500.0,0.00014999,2]
[392769194,1761934238820,-500.0,0.00014999,2]
[392769195,1761934238830,-500.0,0.00014999,2]
[392769196,1761934238840,-500.0,0.00014999,2]
[392769197,1761934238851,-500.0,0.00014999,2]
[392769198,1761934238860,-500.0,0.00014999,2]
[392769199,1761934238870,-500.0,0.00014999,2]
[392769200,1761934238879,-500.0,0.00014999,2]
[392769201,1761934238889,-500.0,0.00014999,2]
[392769202,1761934238900,-500.0,0.00014999,2]
[392769203,1761934238911,-636.52589726,0.00014999,2]
[392769204,1761934238921,-463.85825871,0.00014999,2]
[392769205,1761934238932,-2154.0,0.00015,2]
[392769206,1761934238942,-1661947.10106859,0.00015,2]
[392769207,1761934238954,-2027.73488218,0.00015,2]
[392769208,1761934238964,-7893.81958783,0.00015,2]
[392769209,1761934238975,-4827471.30334414,0.00015,2]
[392769211,1761934239473,-19279.41131575,0.00015,2]
[392769212,1761934239925,-400.0,0.00015,2]
[392769213,1761934239936,-119299.72160153,0.00015,2]
[392769219,1761934241841,-70248.60320844,0.00015,2]
[392769220,1761934241856,-1794.70564697,0.00015,2]
[392769221,1761934241867,-3170.70856964,0.00015,2]
[392769222,1761934241879,-3932.41188116,0.00015,2]
[392769223,1761934241889,-2050.77884625,0.00015,2]
[392769224,1761934241914,-721.15767363,0.00015,2]
[392769225,1761934241933,-2580.64609738,0.00015,2]
[392769226,1761934241946,-3755.99150574,0.00015,2]
[392769227,1761934242089,-4215.08852151,0.00015,2]
[392769228,1761934242100,-2436.06596449,0.00015,2]
[392769229,1761934242111,-660.06717977,0.00015,2]
[392769239,1761934242810,-2040.28669856,0.00015,2]
[392769243,1761934245741,-1173.07245532,0.00015,2]
[392769244,1761934245756,-18590.999998,0.00015,2]
[392769245,1761934245901,-4314.84487092,0.00015,2]
[392769265,1761934367484,176.15,0.00011402,2]
[392769288,1761935205966,-166.66,0.00013699,2]
[392769289,1761935205989,-1000.0,0.00013838,2]
[392769290,1761935206011,-1911.72,0.00013862,2]
[392769291,1761935206034,-250.0,0.0001389,2]
[392769292,1761935206058,-166.66,0.00013903,2]
[392769293,1761935206085,-300.0,0.00013989,2]
[392769294,1761935206110,-12509.51747362,0.0001399,2]
[392769296,1761935206132,-439.87,0.00014001,2]
[392769297,1761935206154,-1416.10252666,0.00014066,2]
[392769298,1761935206179,-1200.0,0.00014084,2]
[392769299,1761935206200,-4445.08,0.00014085,2]
[392769300,1761935206224,-166.66,0.00014107,2]
[392769301,1761935206247,-300.0,0.00014118,2]
[392769302,1761935206270,-5727.72999972,0.0001412,2]
[392769330,1761935431782,-200.0,0.0001395,2]
[392769331,1761935431791,-264.97000028,0.0001412,2]
[392769332,1761935431802,-158.07,0.00014142,2]
[392769333,1761935431811,-277.35679052,0.00014249,2]
[392769334,1761935431821,-166.66,0.00014311,2]
[392769335,1761935431831,-166.66,0.00014515,2]
[392769336,1761935431840,-150.66,0.00014578,2]
[392769337,1761935431850,-216.9840124,0.00014605,2]
[392769338,1761935431859,-270.49,0.00014666,2]
[392769339,1761935431869,-166.66,0.0001472,2]
[392769340,1761935431878,-139.20556049,0.00014726,2]
[392769341,1761935431897,-753.46782673,0.00014726,2]
[392769342,1761935431906,-236.97,0.00014755,2]
[392769343,1761935431915,-2743.64902,0.0001485,2]
[392769344,1761935431925,-200.0,0.0001488,2]
[392769345,1761935431934,-1200.0,0.00014886,2]
[392769346,1761935431944,-300.0,0.00014887,2]
[392769347,1761935431953,-300.0,0.00014887,2]
[392769348,1761935431962,-150.0,0.00014887,2]
[392769349,1761935431972,-151.0,0.00014888,2]
[392769350,1761935431983,-151.0,0.00014888,2]
[392769351,1761935431992,-574.12855637,0.00014888,2]
[392769352,1761935432001,-151.0,0.00014888,2]
[392769353,1761935432010,-260.45727335,0.00014888,2]
[392769354,1761935432019,-151.0,0.00014888,2]
[392769355,1761935432028,-151.0,0.00014888,2]
[392769356,1761935432037,-170.77626782,0.00014888,2]
[392769357,1761935432047,-151.0,0.00014888,2]
[392769359,1761935432059,-151.0,0.00014888,2]
[392769361,1761935432069,-151.0,0.00014888,2]
[392769363,1761935432078,-151.0,0.00014888,2]
[392769365,1761935432087,-151.0,0.00014888,2]
[392769367,1761935432096,-250.0,0.00014888,2]
[392769369,1761935432105,-250.0,0.00014888,2]
[392769371,1761935432115,-500.0,0.00014888,2]
[392769373,1761935432124,-250.0,0.00014888,2]
[392769375,1761935432133,-500.0,0.00014888,2]
[392769377,1761935432141,-250.0,0.00014888,2]
[392769379,1761935432151,-500.0,0.00014888,2]
[392769381,1761935432160,-250.0,0.00014888,2]
[392769383,1761935432169,-500.0,0.00014888,2]
[392769385,1761935432178,-500.0,0.00014888,2]
[392769386,1761935432187,-250.0,0.00014888,2]
[392769389,1761935432196,-500.0,0.00014888,2]
[392769390,1761935432206,-250.0,0.00014888,2]
[392769393,1761935432215,-500.0,0.00014888,2]
[392769394,1761935432226,-250.0,0.00014888,2]
[392769397,1761935432235,-250.0,0.00014888,2]
[392769399,1761935432245,-250.0,0.00014888,2]
[392769401,1761935432255,-500.0,0.00014888,2]
[392769403,1761935432264,-642.94,0.00014888,2]
[392769405,1761935432273,-250.0,0.00014888,2]
[392769407,1761935432282,-250.0,0.00014888,2]
[392769409,1761935432291,-250.0,0.00014888,2]
[392769411,1761935432300,-250.0,0.00014888,2]
[392769413,1761935432309,-250.0,0.00014888,2]
[392769415,1761935432318,-250.0,0.00014888,2]
[392769417,1761935432327,-250.0,0.00014888,2]
[392769419,1761935432336,-250.0,0.00014888,2]
[392769421,1761935432346,-250.0,0.00014888,2]
[392769423,1761935432355,-250.0,0.00014888,2]
[392769425,1761935432365,-250.0,0.00014888,2]
[392769427,1761935432374,-250.0,0.00014888,2]
[392769429,1761935432384,-250.0,0.00014888,2]
[392769430,1761935432394,-250.0,0.00014888,2]
[392769432,1761935432403,-500.0,0.00014888,2]
[392769434,1761935432413,-250.0,0.00014888,2]
[392769437,1761935432422,-250.0,0.00014888,2]
[392769439,1761935432431,-500.0,0.00014888,2]
[392769440,1761935432441,-250.0,0.00014888,2]
[392769442,1761935432451,-250.0,0.00014888,2]
[392769445,1761935432460,-500.0,0.00014888,2]
[392769446,1761935432469,-250.0,0.00014888,2]
[392769448,1761935432479,-250.0,0.00014888,2]
[392769450,1761935432491,-500.0,0.00014888,2]
[392769452,1761935432500,-250.0,0.00014888,2]
[392769454,1761935432510,-500.0,0.00014888,2]
[392769456,1761935432520,-250.0,0.00014888,2]
[392769458,1761935432529,-500.0,0.00014888,2]
[392769460,1761935432538,-250.0,0.00014888,2]
[392769462,1761935432547,-500.0,0.00014888,2]
[392769464,1761935432557,-500.0,0.00014888,2]
[392769466,1761935432566,-500.0,0.00014888,2]
[392769468,1761935432576,-5000.0,0.00014891,2]
[392769470,1761935432586,-2500.0,0.00014891,2]
[392769472,1761935432595,-160.53137194,0.00014891,2]
[392769474,1761935432604,-3665.541,0.00014896,2]
[392769476,1761935432613,-166.135,0.00014896,2]
[392769478,1761935432622,-1183.78570256,0.00014896,2]
[392769480,1761935432631,-1183.78570254,0.00014896,2]
[392769482,1761935432640,-1183.78570254,0.00014897,2]
[392769484,1761935432649,-1000.0,0.00014897,2]
[392769486,1761935432659,-21368.71501932,0.00014897,2]
[392769488,1761935432671,-11831.48888068,0.00014897,2]
[392769490,1761935432680,-1183.78570254,0.00014897,2]
[392769492,1761935432690,-1183.78570254,0.00014898,2]
[392769494,1761935432699,-1183.78570254,0.00014898,2]
[392769496,1761935432708,-1183.78570254,0.00014899,2]
[392769499,1761935432719,-1183.78570254,0.00014899,2]
[392769500,1761935432728,-1183.78570254,0.000149,2]
[392769502,1761935432737,-1183.78570254,0.000149,2]
[392769504,1761935432746,-329.45,0.00014923,2]
[392769506,1761935432756,-385.73,0.00014923,2]
[392769508,1761935432765,-158.07,0.00014928,2]
[392769510,1761935432774,-168.0,0.00014971,2]
[392769512,1761935432784,-500.0,0.00014973,2]
[392769514,1761935432793,-500.0,0.00014973,2]
[392769516,1761935432802,-500.0,0.00014973,2]
[392769518,1761935432811,-500.0,0.00014973,2]
[392769520,1761935432821,-500.0,0.00014973,2]
[392769522,1761935432830,-502.11430923,0.00014973,2]
[392769525,1761935432839,-500.0,0.00014973,2]
[392769527,1761935432849,-500.0,0.00014973,2]
[392769529,1761935432858,-450.04851065,0.00014973,2]
[392769530,1761935432867,-500.0,0.00014973,2]
[392769532,1761935432876,-337.82055885,0.00014973,2]
[392769534,1761935432885,-502.00398933,0.00014973,2]
[392769536,1761935432894,-500.0,0.00014973,2]
[392769538,1761935432903,-500.0,0.00014973,2]
[392769540,1761935432912,-500.0,0.00014973,2]
[392769542,1761935432922,-979.64,0.00014973,2]
[392769545,1761935432934,-500.0,0.00014979,2]
[392769547,1761935432943,-500.0,0.00014979,2]
[392769549,1761935432952,-150.0,0.00014979,2]
[392769551,1761935432961,-161.9875354,0.00014979,2]
[392769553,1761935432970,-150.0,0.00014979,2]
[392769555,1761935432979,-150.0,0.00014979,2]
[392769557,1761935432988,-500.0,0.00014979,2]
[392769559,1761935432997,-500.0,0.00014979,2]
[392769561,1761935433006,-150.0,0.00014979,2]
[392769563,1761935433016,-150.0,0.00014979,2]
[392769565,1761935433025,-150.0,0.00014979,2]
[392769567,1761935433034,-500.0,0.00014979,2]
[392769569,1761935433043,-500.0,0.00014979,2]
[392769571,1761935433053,-500.0,0.00014979,2]
[392769573,1761935433062,-500.0,0.00014979,2]
[392769575,1761935433071,-500.0,0.00014979,2]
[392769577,1761935433079,-521.21172673,0.00014979,2]
[392769579,1761935433088,-500.0,0.00014979,2]
[392769581,1761935433097,-500.0,0.00014979,2]
[392769583,1761935433107,-500.0,0.00014979,2]
[392769585,1761935433116,-500.0,0.00014979,2]
[392769587,1761935433126,-500.0,0.00014979,2]
[392769589,1761935433135,-500.0,0.00014979,2]
[392769591,1761935433144,-500.0,0.00014979,2]
[392769593,1761935433153,-500.0,0.00014979,2]
[392769595,1761935433162,-500.0,0.00014979,2]
[392769597,1761935433171,-500.0,0.00014979,2]
[392769599,1761935433180,-500.0,0.00014979,2]
[392769601,1761935433189,-21213.66255608,0.0001498,2]
[392769603,1761935433201,-23127.36170984,0.0001498,2]
[392769605,1761935433210,-4759.2,0.00014981,2]
[392769607,1761935433219,-4759.2,0.00014981,2]
[392769609,1761935433228,-150.0,0.00014981,2]
[392769611,1761935433238,-500.0,0.00014981,2]
[392769613,1761935433247,-260.87652442,0.00014981,2]
[392769615,1761935433257,-815.0,0.00014981,2]